bitfinex/quotes_ETHUSD_20241129
["timestamp","ask_amount","ask_price","bid_price","bid_amount"]
[1732916673977,2.82636661,3588.6,3588.5,0.55]
[1732916674892,0.03976661,3588.6,3588.5,1.54018501]
[1732916675386,2.78639,3588.9,3588.5,1.54018501]
[1732916675583,0.0397053,3588.6,3588.5,1.54018501]
[1732916675781,2.78644,3588.8,3588.5,1.54018501]
[1732916675952,0.0397053,3588.6,3588.5,1.54018501]
[1732916676152,2.78644,3588.8,3588.5,1.54018501]
[1732916676458,2.78644,3588.8,3588.7,0.55]
[1732916677169,2.82621953,3588.8,3588.7,0.55]
[1732916677485,2.82621953,3588.8,3588.6,0.55]
[1732916677813,2.78652,3588.7,3588.6,0.55]
[1732916678281,2.82628757,3588.7,3588.6,0.55]
[1732916682883,2.82628757,3588.7,3588.5,0.55]
[1732916683089,2.78664,3588.6,3588.5,0.55]
[1732916683385,2.82636439,3588.6,3588.5,0.55]
[1732916684360,0.03972439,3588.6,3588.5,0.73599501]
[1732916687782,2.82632439,3588.6,3588.5,0.55]
[1732916700230,0.03972439,3588.6,3588.5,1.3271]
[1732916700427,0.03972439,3588.6,3588.5,4.11377]
[1732916700604,2.78632,3589.0,3588.5,4.11377]
[1732916701225,0.03862087,3588.9,3588.5,4.11377]
[1732916701424,0.03862087,3588.9,3588.7,0.55]
[1732916703016,2.82499087,3588.9,3588.7,0.55]
[1732916703212,2.82499087,3588.9,3588.6,0.55]
[1732916704319,0.03862087,3588.9,3588.6,0.55]
[1732916704619,2.78629,3589.0,3588.6,0.55]
[1732916704818,0.03825685,3588.8,3588.6,1.01868287]
[1732916705023,2.78629,3589.0,3588.6,1.01868287]
[1732916705342,2.78619,3589.2,3588.6,3.80528287]
[1732916705545,0.03837676,3589.1,3588.6,3.80528287]
[1732916705905,2.82458676,3589.1,3588.6,3.80528287]
[1732916706105,2.82458676,3589.1,3588.8,0.55]
[1732916709854,2.82458676,3589.1,3589.0,1.10689808]
[1732916712565,2.82458676,3589.1,3589.0,1.54185001]
[1732916713758,2.82458676,3589.1,3589.0,1.10689808]
[1732916714063,2.82458676,3589.1,3589.0,1.54184861]
[1732916714552,2.82458676,3589.1,3589.0,1.10689808]
[1732916715233,2.82458676,3589.1,3589.0,1.52445595]
[1732916715439,2.82458676,3589.1,3589.0,1.78542962]
[1732916718172,2.82458676,3589.1,3589.0,1.22853154]
[1732916718767,2.82458676,3589.1,3589.0,1.22852716]
[1732916722572,2.82458676,3589.1,3589.0,1.22861562]
[1732916729133,3.62178676,3589.1,3589.0,1.22861562]
[1732916730376,4.85425388,3589.1,3589.0,0.67861562]
[1732916730593,4.87855388,3589.1,3589.0,0.67861562]
[1732916730736,7.87855388,3589.1,3589.0,0.67861562]
[1732916731349,7.87855388,3589.1,3589.0,0.26100601]
[1732916731570,7.87855388,3589.1,3589.0,0.67870503]
[1732916732361,7.87855388,3589.1,3589.0,0.26100601]
[1732916738875,3.0,3589.0,3588.5,0.02830861]
[1732916739189,2.7866,3588.6,3588.5,0.02830861]
[1732916739385,2.7866,3588.6,3588.5,0.70611756]
[1732916739554,2.82273657,3588.6,3588.5,0.70611756]
[1732916739755,4.87400369,3588.6,3588.5,0.70611756]
[1732916740862,3.64153657,3588.6,3588.5,0.70611756]
[1732916741066,0.03613657,3588.6,3588.5,1.25611756]
[1732916741300,2.78642,3588.9,3588.5,2.03051756]
[1732916741498,2.78557,3590.0,3588.5,2.03051756]
[1732916741499,2.78616,3589.2,3588.7,0.7744]
[1732916741667,2.78625,3589.1,3588.9,0.55]
[1732916741862,2.78625,3589.1,3589.0,1.22780895]
[1732916742773,2.82209347,3589.1,3589.0,1.22780895]
[1732916745889,4.23246712,3590.4,3590.0,86.55459941]
[1732916746097,4.01789712,3590.1,3590.0,86.55459941]
[1732916746894,2.78543,3590.1,3590.0,86.55459941]
[1732916747102,4.01789712,3590.1,3590.0,86.55459941]
[1732916748109,7.01789712,3590.1,3590.0,86.55459941]
[1732916748891,7.69259712,3590.1,3590.0,86.55459941]
[1732916749313,7.72761675,3590.1,3590.0,86.55459941]
[1732916754523,6.49514963,3590.1,3590.0,86.55459941]
[1732916754833,7.69259712,3590.1,3590.0,86.55459941]
[1732916755209,7.72669284,3590.1,3590.0,86.55459941]
[1732916756822,7.72669284,3590.1,3590.0,86.55459941]
[1732916758987,7.72669284,3590.1,3590.0,79.59079941]
[1732916759134,7.69259712,3590.1,3590.0,79.59079941]
[1732916759342,7.69259712,3590.1,3590.0,78.19803941]
[1732916759495,7.69259712,3590.1,3590.0,72.62699941]
[1732916759695,7.8262044,3590.1,3590.0,72.62699941]
[1732916760132,7.9262044,3590.1,3590.0,72.62699941]
[1732916760336,7.9262044,3590.1,3590.0,67.05595941]
[1732916760502,7.9262044,3590.1,3590.0,65.66319941]
[1732916761314,7.9262044,3590.1,3590.0,60.09215941]
[1732916761646,7.9262044,3590.1,3590.0,58.69939941]
[1732916762408,7.9262044,3590.1,3590.0,53.12835941]
[1732916762615,7.9262044,3590.1,3590.0,51.73559941]
[1732916763448,7.9262044,3590.1,3590.0,48.95007941]
[1732916763652,7.9262044,3590.1,3590.0,46.16455941]
[1732916764653,7.9262044,3590.1,3590.0,44.77179941]
[1732916765029,7.9262044,3590.1,3590.0,40.59351941]
[1732916765239,7.9262044,3590.1,3590.0,37.80799941]
[1732916765469,7.9262044,3590.1,3590.0,36.41523941]
[1732916765618,7.9262044,3590.1,3590.0,35.02247941]
[1732916769234,7.8262044,3590.1,3590.0,35.02247941]
[1732916770159,7.7262044,3590.1,3590.0,35.02247941]
[1732916770918,6.49373728,3590.1,3590.0,35.02247941]
[1732916771118,7.0515044,3590.1,3590.0,35.02247941]
[1732916778880,7.02319579,3590.1,3590.0,35.02247941]
[1732916786098,7.79789579,3590.1,3590.0,28.05867941]
[1732916786381,7.79789579,3590.1,3590.0,21.09487941]
[1732916787041,6.46542867,3590.1,3590.0,21.09487941]
[1732916787246,5.79072867,3590.1,3590.0,21.09487941]
[1732916787459,7.02319579,3590.1,3590.0,21.09487941]
[1732916787887,5.79072867,3590.1,3590.0,21.09487941]
[1732916788048,7.02319579,3590.1,3590.0,21.09487941]
[1732916797089,7.02319579,3590.1,3590.0,21.35583212]
[1732916797304,7.02319579,3590.1,3590.0,21.35586636]
[1732916800425,5.79072867,3590.1,3590.0,21.35586636]
[1732916800629,7.02319579,3590.1,3590.0,22.99131325]
[1732916801749,0.03360728,3590.1,3590.0,23.76821325]
[1732916801886,0.03360728,3590.1,3590.0,24.18586157]
[1732916802086,0.6747,3591.3,3590.1,0.8292]
[1732916802087,1.23246712,3590.4,3590.1,0.8292]
[1732916802392,1.23246712,3590.4,3590.2,3.15465652]
[1732916802693,1.23246712,3590.4,3590.3,0.67863527]
[1732916802902,1.23246712,3590.4,3590.3,0.26098695]
[1732916803226,1.23246712,3590.4,3590.1,0.8292]
[1732916803428,0.6747,3590.8,3590.2,0.26087431]
[1732916803605,0.6747,3590.8,3590.3,0.26087431]
[1732916803801,0.6747,3590.8,3590.1,0.8292]
[1732916804027,1.23246712,3590.2,3590.1,0.8292]
[1732916804240,1.23246712,3590.2,3590.1,1.09003231]
[1732916805318,4.01782712,3590.2,3590.1,1.09003231]
[1732916805525,7.01782712,3590.2,3590.1,1.09003231]
[1732916805703,5.8166777,3590.2,3590.1,1.09003231]
[1732916806040,5.8166777,3590.2,3590.1,4.27580895]
[1732916806041,0.0313177,3590.2,3590.1,4.27580895]
[1732916806245,3.0,3590.8,3590.1,4.27580895]
[1732916806246,2.78533,3590.3,3590.1,4.79722741]
[1732916806544,2.78533,3590.3,3590.2,0.67811778]
[1732916807410,2.78533,3590.3,3590.2,0.67772602]
[1732916808549,2.78533,3590.3,3590.2,1.42842602]
[1732916808748,2.78533,3590.3,3590.2,3.95760568]
[1732916809147,2.81640654,3590.3,3590.2,3.95760568]
[1732916810648,2.81640654,3590.3,3590.2,3.95727003]
[1732916811656,0.03107654,3590.3,3590.2,4.50727003]
[1732916812109,3.0,3590.8,3590.5,0.55]
[1732916812314,3.0,3590.8,3590.6,1.08143476]
[1732916812512,5.78489,3590.8,3590.7,0.26053476]
[1732916814646,5.78497,3590.7,3590.6,1.3709]
[1732916814847,7.01743712,3590.7,3590.6,1.63122581]
[1732916815051,4.01734712,3590.9,3590.6,1.63122581]
[1732916815373,5.78489,3590.8,3590.7,0.26030591]
[1732916815566,7.01743712,3590.7,3590.6,1.3709]
[1732916815728,7.01743712,3590.7,3590.6,1.63120469]
[1732916816243,7.0489595,3590.7,3590.6,1.63120469]
[1732916816443,4.2639895,3590.7,3590.6,1.63120469]
[1732916816764,3.03152238,3590.7,3590.6,1.63120469]
[1732916817763,0.03152238,3590.7,3590.6,2.21082545]
[1732916817929,2.78489,3590.8,3590.6,2.21082545]
[1732916818132,2.78489,3590.8,3590.7,0.26030469]
[1732916818656,4.01722712,3591.0,3590.7,0.26030469]
[1732916818970,4.01722712,3591.0,3590.8,0.26030469]
[1732916819268,4.01722712,3591.0,3590.9,0.26030469]
[1732916819867,4.04880501,3591.0,3590.9,0.26030469]
[1732916820276,4.04880501,3591.0,3590.6,0.98402047]
[1732916820277,2.78493,3590.8,3590.6,0.98402047]
[1732916820433,4.01739712,3590.8,3590.7,0.260259]
[1732916820737,4.04897014,3590.8,3590.7,0.260259]
[1732916820940,2.7852,3590.4,3590.3,1.3663]
[1732916821166,2.7852,3590.4,3590.3,2.04302454]
[1732916821373,2.81672002,3590.4,3590.3,2.04302454]
[1732916821731,0.03152002,3590.4,3590.3,2.04302454]
[1732916822053,2.78499,3590.7,3590.4,0.55]
[1732916822257,2.78509,3590.6,3590.5,0.26027867]
[1732916822762,2.78509,3590.6,3590.4,0.55]
[1732916822763,2.78512,3590.5,3590.4,0.55]
[1732916822966,2.78509,3590.6,3590.4,1.22679098]
[1732916823169,2.78509,3590.6,3590.5,0.26030424]
[1732916823967,2.78107201,3590.6,3590.5,0.26030424]
[1732916824471,1.23246712,3591.3,3590.7,0.55]
[1732916824774,1.23246712,3591.3,3590.8,1.50301711]
[1732916824933,1.23246712,3591.3,3590.9,0.26030424]
[1732916825134,1.23246712,3591.3,3591.0,0.26030424]
[1732916825330,1.23246712,3591.3,3591.1,0.26030424]
[1732916825555,1.23246712,3591.3,3590.8,0.8262]
[1732916825756,1.23246712,3591.3,3590.9,0.26030603]
[1732916825957,1.23246712,3591.3,3591.0,0.26030603]
[1732916826148,1.23246712,3591.3,3591.1,0.26033429]
[1732916826356,1.23246712,3591.3,3590.8,0.8262]
[1732916826625,1.23246712,3591.3,3590.9,0.67678065]
[1732916826747,1.23246712,3591.3,3591.0,0.26030025]
[1732916826944,1.23246712,3591.3,3591.1,0.26030025]
[1732916827268,0.6747,3592.4,3591.3,0.7922]
[1732916827432,1.23246712,3591.7,3591.4,0.26027757]
[1732916827633,1.23246712,3591.7,3591.5,0.26027757]
[1732916827903,2.78437,3591.5,3591.3,0.7922]
[1732916828048,0.03179055,3591.6,3590.8,0.52052733]
[1732916828049,0.03179055,3591.6,3591.4,0.2602601]
[1732916828247,2.78412,3591.8,3591.5,1.0476601]
[1732916828484,1.23246712,3592.0,3591.6,0.2602601]
[1732916828652,5.78417,3591.8,3591.7,0.2602601]
[1732916828854,7.01663712,3591.8,3591.7,0.2602601]
[1732916829364,2.78424,3591.7,3591.5,0.7874]
[1732916829564,2.78424,3591.7,3591.6,0.26015022]
[1732916830088,7.01663712,3591.8,3591.6,0.26015022]
[1732916830411,2.78419,3591.7,3591.5,0.7874]
[1732916830560,2.78399,3592.0,3591.6,0.26012189]
[1732916830755,2.78399,3592.0,3591.5,0.7874]
[1732916830756,2.78413,3591.8,3591.5,0.7874]
[1732916830952,2.78421,3591.7,3591.6,0.26011792]
[1732916831196,2.81605574,3591.7,3591.6,0.26011792]
[1732916831400,0.03184574,3591.7,3591.6,0.26011792]
[1732916831691,2.7841,3591.9,3591.6,0.26011792]
[1732916831893,4.01644712,3592.0,3591.7,0.26011792]
[1732916832101,2.78411,3591.8,3591.6,0.55]
[1732916832296,2.78411,3591.8,3591.7,0.26003173]
[1732916832804,2.78411,3591.8,3591.7,0.26003067]
[1732916834280,2.81622084,3591.8,3591.7,0.26003067]
[1732916834493,2.76622084,3591.8,3591.7,0.26003067]
[1732916834799,5.76622084,3591.8,3591.7,0.26003067]
[1732916836161,0.03211084,3591.8,3591.7,0.26003067]
[1732916836668,0.03211084,3591.8,3591.7,0.81003067]
[1732916836907,0.03211084,3591.8,3591.7,2.19141257]
[1732916837261,1.23246712,3592.5,3591.9,0.8057]
[1732916837563,1.23246712,3592.5,3592.0,0.81003067]
[1732916837758,1.23246712,3592.5,3592.1,0.26003067]
[1732916838071,1.23246712,3592.5,3592.0,0.55]
[1732916838072,0.03091955,3592.4,3592.0,0.55]
[1732916838276,1.23246712,3592.5,3592.0,0.55]
[1732916838471,1.23246712,3592.5,3592.1,0.2598975]
[1732916839201,1.22692037,3592.5,3592.1,0.2598975]
[1732916839565,1.22692037,3592.5,3592.0,0.55]
[1732916839958,3.0,3592.2,3592.0,0.55]
[1732916841407,3.0,3592.4,3592.1,0.8264]
[1732916841707,5.78365,3592.4,3592.1,0.8264]
[1732916842000,3.0,3592.6,3592.1,0.8264]
[1732916842199,3.0,3592.6,3592.2,0.55]
[1732916842200,2.78353,3592.6,3592.2,0.55]
[1732916842709,0.02957108,3592.5,3592.4,1.3629]
[1732916842862,0.02957108,3592.5,3592.4,4.14655]
[1732916843059,2.78295,3593.3,3592.4,3.33365]
[1732916843322,4.01541712,3593.3,3592.6,1.3203]
[1732916843463,4.01541712,3593.3,3592.8,0.55]
[1732916843804,2.78308,3593.2,3592.8,0.55]
[1732916843986,4.01541712,3593.3,3592.8,0.55]
[1732916844297,3.0,3593.2,3592.7,1.3452]
[1732916844498,3.0,3593.2,3592.8,0.7952]
[1732916845064,0.02980264,3593.1,3592.8,0.7952]
[1732916845264,0.02980264,3593.1,3592.9,0.55]
[1732916845495,0.6747,3593.7,3593.0,0.7952]
[1732916845496,4.01512712,3593.7,3593.0,0.7952]
[1732916845698,2.78272,3593.6,3593.2,0.7952]
[1732916846088,2.78287,3593.5,3593.2,0.7952]
[1732916846868,3.0,3593.4,3593.2,0.7952]
[1732916847688,1.23246712,3593.5,3593.2,0.7952]
[1732916848707,0.03001544,3593.4,3593.2,0.7952]
[1732916849286,0.03001544,3593.4,3593.3,0.55]
[1732916849485,1.23246712,3593.9,3593.3,0.962831]
[1732916849691,1.23246712,3593.7,3593.3,0.55]
[1732916849886,0.03011699,3593.6,3593.3,0.55]
[1732916850823,2.81288699,3593.6,3593.3,0.55]
[1732916851111,2.7828,3593.5,3593.3,0.55]
[1732916851276,2.78287,3593.4,3593.3,0.55]
[1732916851477,2.81295914,3593.4,3593.3,0.55]
[1732916853073,2.78317,3593.1,3592.9,0.7537]
[1732916853421,0.03003375,3593.0,3592.9,0.7537]
[1732916853714,3.0,3593.3,3592.9,0.7537]
[1732916853912,0.03018846,3593.0,3592.9,0.7537]
[1732916854081,5.78309,3593.2,3592.9,0.7537]
[1732916854285,0.03021944,3593.1,3592.9,0.7537]
[1732916854817,0.03021944,3593.1,3593.0,0.55]
[1732916857075,0.03021944,3593.1,3592.3,0.8257]
[1732916857317,1.23246712,3592.6,3592.3,0.8257]
[1732916857685,0.03012293,3592.5,3592.3,0.8257]
[1732916858717,3.0,3592.8,3592.4,0.55]
[1732916858885,4.23246712,3593.0,3592.6,0.55]
[1732916859076,7.01565712,3593.0,3592.6,0.55]
[1732916859704,3.0,3592.8,3592.6,0.55]
[1732916859909,2.78342,3592.7,3592.6,0.55]
[1732916860412,2.81360491,3592.7,3592.6,0.55]
[1732916860780,2.78362,3592.5,3592.0,0.8084]
[1732916860980,0.03018491,3592.7,3592.0,0.8084]
[1732916860981,4.01612712,3592.4,3592.0,0.8084]
[1732916861223,4.04621906,3592.4,3592.0,0.8084]
[1732916861388,2.81375194,3592.4,3592.0,0.8084]
[1732916862030,0.03009194,3592.4,3592.0,0.8084]
[1732916862324,2.78355,3592.6,3592.0,4.24597331]
[1732916862487,0.0298329,3592.3,3592.1,0.55]
[1732916862689,2.78355,3592.6,3592.1,0.55]
[1732916862891,0.02989489,3592.5,3592.1,0.55]
[1732916863481,0.02989489,3592.5,3592.1,3.33386]
[1732916863686,2.78342,3592.7,3592.2,0.7933]
[1732916863924,2.81345664,3592.6,3592.3,0.55]
[1732916864423,0.02994664,3592.6,3592.3,0.55]
[1732916864720,3.0,3593.0,3592.5,0.55]
[1732916864721,7.01572712,3593.0,3592.5,0.55]
[1732916865087,2.78327,3592.9,3592.5,0.55]
[1732916865299,3.0,3592.8,3592.5,0.55]
[1732916867108,5.78334,3592.8,3592.5,0.55]
[1732916867442,2.78327,3592.9,3592.5,0.55]
[1732916867646,3.0,3592.8,3592.5,0.55]
[1732916867795,0.03002065,3592.7,3592.5,0.55]
[1732916868210,0.02998967,3592.6,3592.5,0.55]
[1732916868410,3.0,3592.8,3592.5,0.55]
[1732916868811,0.03002065,3592.7,3592.5,0.55]
[1732916869049,3.0,3592.8,3592.5,0.55]
[1732916869510,0.03002065,3592.7,3592.5,0.55]
[1732916869712,2.78313,3593.1,3592.6,0.7856]
[1732916869921,0.03011361,3593.0,3592.7,0.55]
[1732916870443,1.23246712,3593.3,3592.7,3.33342]
[1732916871028,1.23246712,3593.3,3592.8,0.781]
[1732916871226,1.23246712,3593.3,3592.9,0.55]
[1732916872757,1.18246712,3593.3,3592.9,0.55]
[1732916873455,3.03022259,3593.2,3592.9,0.55]
[1732916873613,0.03019161,3593.1,3592.9,0.55]
[1732916877823,1.23246712,3593.3,3592.9,0.55]
[1732916878231,0.03023872,3593.2,3592.9,0.55]
[1732916878436,1.23246712,3593.3,3592.9,0.55]
[1732916878816,0.03022664,3593.2,3592.9,0.55]
[1732916879013,1.23246712,3593.3,3592.9,0.55]
[1732916879460,0.03021456,3593.2,3592.9,0.55]
[1732916879961,0.03018358,3593.1,3592.9,0.55]
[1732916880453,1.23246712,3593.3,3592.9,0.55]
[1732916880866,0.03019039,3593.2,3592.9,0.55]
[1732916881038,1.23246712,3593.3,3592.9,0.55]
[1732916881236,0.03019039,3593.2,3592.9,0.55]
[1732916881545,2.78314,3593.1,3592.9,0.55]
[1732916881744,2.81329941,3593.1,3592.9,0.55]
[1732916881953,2.78318,3593.0,3592.9,0.55]
[1732916882334,2.81329634,3593.0,3592.9,0.55]
[1732916882749,0.03011634,3593.0,3592.9,0.55]
[1732916884559,2.81329634,3593.0,3592.9,0.55]
[1732916884767,2.81329634,3593.0,3592.7,0.55]
[1732916886065,2.78332,3592.9,3592.7,0.55]
[1732916886424,0.02901603,3592.8,3592.7,0.55]
[1732916886621,0.02901603,3592.8,3592.7,1.77340437]
[1732916886821,5.78313,3593.1,3592.7,1.77340437]
[1732916887025,0.02888355,3592.8,3592.7,4.55682437]
[1732916887257,3.0,3593.1,3592.7,4.55682437]
[1732916887567,3.0,3593.1,3592.7,1.77340437]
[1732916887741,0.02901676,3593.0,3592.9,0.55]
[1732916887930,0.02901676,3593.0,3592.7,1.77340437]
[1732916888526,0.02901676,3593.0,3592.8,0.17734044]
[1732916888868,0.02901676,3593.0,3592.9,0.55]
[1732916890799,3.0,3593.1,3592.9,0.55]
[1732916891002,0.02806402,3593.0,3592.9,0.55]
[1732916893702,1.23246712,3593.3,3592.9,0.55]
[1732916893897,0.02745224,3593.2,3592.9,0.55]
[1732916894105,1.23246712,3593.3,3592.9,0.69779404]
[1732916895708,1.20992447,3593.3,3592.9,0.69779404]
[1732916895880,1.25890099,3593.2,3592.9,0.55]
[1732916896207,2.78312,3593.1,3592.7,0.7506]
[1732916896427,0.02643387,3593.2,3593.0,0.7967]
[1732916896584,5.78296,3593.3,3593.0,0.7967]
[1732916896810,1.23246712,3593.1,3592.4,0.57079367]
[1732916896986,4.01587712,3592.8,3592.1,3.58058]
[1732916897376,4.01587712,3592.8,3591.8,0.7967]
[1732916897377,2.78384,3592.2,3591.8,0.7967]
[1732916898486,1.23246712,3592.3,3591.8,0.7967]
[1732916898809,1.23246712,3592.3,3591.9,0.358089]
[1732916898999,1.23246712,3592.3,3591.9,3.142129]
[1732916899306,0.0260781,3592.2,3591.9,3.142129]
[1732916899522,2.78365,3592.4,3591.9,0.358089]
[1732916899809,0.02605275,3592.3,3591.9,0.358089]
[1732916899972,0.02605275,3592.3,3592.0,0.3938899]
[1732916901610,0.02605275,3592.3,3592.1,0.78220348]
[1732916901864,0.02605275,3592.3,3592.0,0.3938899]
[1732916903209,0.02605275,3592.3,3592.0,3.1778499]
[1732916903415,0.02605275,3592.3,3592.2,1.312]
[1732916903572,1.23246712,3592.9,3592.2,4.59978499]
[1732916903974,3.0,3592.7,3592.2,4.59978499]
[1732916904416,0.02607894,3592.6,3592.2,1.81598499]
[1732916906284,0.02607894,3592.6,3592.2,1.26598499]
[1732916906484,2.80957894,3592.6,3592.2,1.26598499]
[1732916907904,0.02607894,3592.6,3592.2,1.26598499]
[1732916908278,0.02607894,3592.6,3592.3,0.4049845]
[1732916908571,1.23246712,3592.9,3592.3,0.4049845]
[1732916908776,0.02607626,3592.5,3592.2,1.26598499]
[1732916908979,1.23246712,3592.9,3592.2,1.26598499]
[1732916909215,0.02604526,3592.4,3592.2,1.26598499]
[1732916909421,1.23246712,3592.9,3592.2,1.26598499]
[1732916909615,0.02601426,3592.3,3592.2,0.762]
[1732916909915,0.0260113,3592.3,3592.2,0.762]
[1732916910117,1.23246712,3592.7,3592.2,0.762]
[1732916910324,0.0261043,3592.6,3592.2,0.762]
[1732916911705,2.8096443,3592.6,3592.2,0.762]
[1732916911920,0.0261043,3592.6,3592.2,0.762]
[1732916912298,0.0261043,3592.6,3592.3,2.78369]
[1732916912487,7.01577712,3592.9,3592.4,0.632952]
[1732916912688,0.02528766,3592.8,3592.3,2.78369]
[1732916913197,0.02528766,3592.8,3592.6,2.78349]
[1732916913711,0.02526853,3592.7,3592.6,2.78349]
[1732916913916,2.78312,3593.1,3592.6,2.78349]
[1732916914234,0.02536151,3593.0,3592.6,2.78349]
[1732916914382,0.02536151,3593.0,3592.6,3.470623]
[1732916915726,0.02533052,3592.9,3592.6,3.470623]
[1732916915887,2.78304,3593.2,3592.6,3.470623]
[1732916916088,0.0253925,3593.1,3592.6,3.470583]
[1732916916601,0.0253925,3593.1,3592.7,2.7834]
[1732916917125,2.7832,3593.0,3592.5,0.7542]
[1732916917349,0.02533052,3592.9,3592.5,0.7542]
[1732916918650,0.02533052,3592.9,3592.5,3.53777]
[1732916921132,0.02533052,3592.9,3592.5,0.7542]
[1732916922541,2.78339,3592.8,3592.2,0.8325]
[1732916922746,0.02479186,3592.7,3592.2,3.61629]
[1732916927562,0.02479186,3592.7,3592.2,4.31198002]
[1732916928499,2.80823186,3592.7,3592.2,4.31198002]
[1732916929370,2.80823186,3592.7,3592.3,0.55]
[1732916929889,2.78351,3592.6,3592.2,0.55]
[1732916930368,0.02474455,3592.5,3592.2,0.55]
[1732916930689,2.78367,3592.4,3592.0,0.8145]
[1732916930997,0.02467077,3592.3,3592.1,0.55]
[1732916931857,0.02467077,3592.3,3592.0,0.55]
[1732916932253,0.02467077,3592.3,3591.8,0.55]
[1732916932576,0.02467077,3592.3,3591.8,3.749513]
[1732916933492,0.02467077,3592.3,3592.0,0.55]
[1732916933889,0.02467077,3592.3,3591.9,0.55]
[1732916934271,2.80842077,3592.3,3591.9,0.55]
[1732916935195,0.02467077,3592.3,3591.9,0.55]
[1732916935601,0.02467077,3592.3,3592.0,2.78389]
[1732916936002,2.78351,3592.6,3592.0,2.78389]
[1732916936806,0.02463605,3592.5,3592.0,2.78389]
[1732916937457,0.02463605,3592.5,3592.1,0.55]
[1732916937706,2.78352,3592.6,3592.1,0.55]
[1732916937861,0.02460505,3592.4,3592.1,0.55]
[1732916938061,0.02463605,3592.5,3592.1,1.08310279]
[1732916938264,0.02457405,3592.3,3592.1,1.08310279]
[1732916938463,2.78352,3592.6,3592.1,1.08310279]
[1732916938800,2.78359,3592.5,3592.1,0.55]
[1732916939006,2.80822605,3592.5,3592.1,0.55]
[1732916940106,0.02463605,3592.5,3592.1,0.55]
[1732916940884,2.80821605,3592.5,3592.1,0.55]
[1732916941199,0.02463605,3592.5,3592.1,3.33387]
[1732916941563,4.69065712,3592.7,3592.1,3.33387]
[1732916941767,4.69065712,3592.7,3592.2,2.78379]
[1732916941768,0.02471744,3592.6,3592.2,2.78379]
[1732916944607,3.0,3592.8,3592.4,2.78361]
[1732916944803,0.02468176,3592.5,3592.4,2.78361]
[1732916945010,3.6747,3593.0,3592.5,2.78356]
[1732916945299,3.6747,3593.0,3592.6,2.78349]
[1732916945300,3.0,3593.0,3592.6,2.78349]
[1732916945667,2.78298,3593.3,3592.7,3.5578]
[1732916945866,1.23246712,3593.4,3592.8,2.78333]
[1732916946087,1.23246712,3593.4,3592.9,2.78321]
[1732916947069,4.23246712,3593.4,3592.9,2.78321]
[1732916947572,0.02500405,3593.3,3592.9,2.78321]
[1732916949595,0.02500405,3593.3,3593.0,2.78318]
[1732916950002,0.02500405,3593.3,3592.9,2.78325]
[1732916950716,0.02500405,3593.3,3593.1,2.78306]
[1732916950902,3.0,3593.6,3593.1,2.78306]
[1732916951211,0.02513554,3593.5,3593.2,2.78303]
[1732916951579,0.02513554,3593.5,3593.1,3.61226]
[1732916952217,0.02513554,3593.5,3593.2,2.78303]
[1732916952518,0.02513554,3593.5,3593.3,2.7829]
[1732916952808,4.68953712,3594.1,3593.4,2.78287]
[1732916953018,0.6747,3594.1,3593.7,2.78262]
[1732916953877,1.90716712,3594.1,3593.7,2.78262]
[1732916954571,1.90716712,3594.1,3593.5,3.60988]
[1732916954880,0.02518525,3594.0,3593.6,3.421992]
[1732916955408,0.02518525,3594.0,3593.6,0.639282]
[1732916955608,0.02518525,3594.0,3593.5,3.60988]
[1732916955609,1.23246712,3593.9,3593.5,0.8271]
[1732916955780,1.23246712,3593.9,3593.5,0.55]
[1732916955982,0.02517379,3593.8,3593.5,0.55]
[1732916956511,0.02517379,3593.8,3593.5,2.78279]
[1732916956880,0.02517379,3593.8,3593.4,0.55]
[1732916957080,0.02517379,3593.8,3593.5,0.416004]
[1732916957692,0.02517379,3593.8,3593.4,0.55]
[1732916957693,1.23246712,3593.9,3593.4,3.33286]
[1732916957902,1.23246712,3593.9,3593.5,3.53685]
[1732916958420,0.02532497,3593.8,3593.5,3.53685]
[1732916959382,0.02532497,3593.8,3593.7,0.00110585]
[1732916963129,2.80788497,3593.8,3593.7,0.00110585]
[1732916963291,6.48258497,3593.8,3593.7,0.00110585]
[1732916964685,7.71505209,3593.8,3593.7,0.00110585]
[1732916967486,6.48258497,3593.8,3593.7,0.00110585]
[1732916969186,7.71505209,3593.8,3593.7,0.00110585]
[1732916970128,8.94751921,3593.8,3593.7,0.00110585]
[1732916971800,7.71505209,3593.8,3593.7,0.00110585]
[1732916976409,8.94751921,3593.8,3593.7,0.00110585]
[1732916976739,7.71505209,3593.8,3593.7,0.00110585]
[1732916977314,8.94751921,3593.8,3593.7,0.00110585]
[1732916988437,8.92219424,3593.8,3593.7,0.00110585]
[1732916989943,8.92219424,3593.8,3593.7,5.85e-06]
[1732916990147,9.02219424,3593.8,3593.7,5.85e-06]
[1732916990609,2.78357,3592.5,3592.4,0.785]
[1732916990824,4.01603712,3592.5,3592.4,0.785]
[1732916995157,4.01595712,3592.7,3592.4,0.785]
[1732916997629,2.78351,3592.6,3592.4,0.785]
[1732916997829,1.23246712,3592.5,3592.4,0.785]
[1732916999762,4.01603712,3592.5,3592.4,0.785]
[1732917002269,1.23246712,3592.7,3592.4,0.785]
[1732917002468,2.78351,3592.6,3592.4,0.785]
[1732917004070,1.23246712,3592.7,3592.4,0.785]
[1732917004283,3.0,3592.9,3592.6,0.7731]
[1732917006091,1.23246712,3593.0,3592.6,0.7731]
[1732917006886,1.23246712,3593.0,3592.6,3.55659]
[1732917007576,4.23246712,3593.2,3592.7,2.78336]
[1732917007776,4.01550712,3593.2,3592.8,0.7741]
[1732917007966,3.0,3593.1,3592.8,0.7741]
[1732917008168,1.23246712,3593.2,3592.8,0.7741]
[1732917010041,1.23246712,3593.2,3592.8,3.55743]
[1732917010247,1.23246712,3593.2,3592.8,4.191509]
[1732917012261,1.23246712,3593.2,3593.0,2.78317]
[1732917012438,1.23246712,3593.2,3592.8,4.191459]
[1732917016553,1.23246712,3593.2,3592.8,1.408179]
[1732917017057,4.01551712,3593.2,3592.8,1.408179]
[1732917017385,4.01551712,3593.2,3592.8,4.191509]
[1732917017386,1.23246712,3593.2,3592.8,4.191509]
[1732917017858,1.23246712,3593.2,3592.8,1.408179]